[Event "34th MPL National U14-ch 2022"]
[Site "Ahmedabad"]
[Date "2022.05.09"]
[Round "1.6"]
[White "Neev Hemish Shah"]
[Black "Shaik Sumer Arsh"]
[Result "0-1"]
[ECO "E55"]
[WhiteElo "1289"]
[BlackElo "1999"]
[Annotator "TA"]
[PlyCount "50"]
[EventDate "2022.05.09"]
[EventType "swiss"]
[EventCountry "IND"]
[SourceTitle "playchess.com"]
[Source "ChessBase"]
[SourceQuality "1"]
[TimeControl "5400+30"]

{[%evp 25,50,0,0,0,0,0,41,57,65,-3,0,-24,-9,-203,-197,-212,-104,-96,-100,-108,-65,-739,-732,-728,-713,-5589,-3149]} 1. d4 {[%emt 0:00:07]} Nf6 {[%emt 0:00:09]} 2. c4 {[%emt 0:00:07]} e6 {[%emt 0:00:07]} 3. Nc3 {[%emt 0:00:18]} Bb4 {[%emt 0:00:09]} 4. e3 {[%emt 0:00:23]} O-O {[%emt 0:00:09]} 5. Bd3 {[%emt 0:01:21]} d5 {[%emt 0:00:07]} 6. Nf3 {[%emt 0:02:18]} dxc4 {[%emt 0:01:17]} 7. Bxc4 {[%emt 0:00:17]} c5 {[%emt 0:00:26]} 8. O-O {[%emt 0:01:07]} cxd4 {[%emt 0:07:42]} 9. exd4 {[%emt 0:00:15]} b6 {[%emt 0:00:12]} 10. a3 {[%emt 0:01:10]} Bxc3 {[%emt 0:09:20]} 11. bxc3 {[%emt 0:00:19]} Qc7 {[%emt 0:00:30]} 12. Qe2 {[%emt 0:08:56]} Nbd7 {[%emt 0:03:01][%cal Bb8d7,Bd7e5,Be5c4,Bc4d2][%mdl 32] is the legacy move (12...Bb7).} 13. Bd2 {[%emt 0:02:35]} Bb7 {[%emt 0:00:46]} 14. Bd3 $1 {[%emt 0:00:24] E55: Nimzo-Indian: Rubinstein: Main Line: 7...dxc4 8 Bxc4 Nbd7.} Rfe8 {[%emt 0:01:09]} 15. Rfe1 {[%emt 0:00:47] [#]} Bxf3 $146 {[%emt 0:15:15]} ({Predecessor:} 15... h6 16. a4 Rad8 17. Ne5 Nxe5 18. Qxe5 Qxe5 19. Rxe5 Rd5 20. Rxd5 Bxd5 21. a5 Ne4 22. Bxe4 {½-½ (22) Shen,C (2335)-Bregadze,L (2448) Charlotte 2022}) 16. Qxf3 {[%emt 0:00:59] White is slightly better.} (16. gxf3 e5 17. Qf1 Qd6 $15) 16... e5 {[%emt 0:06:08] Prevents Bf4.} 17. dxe5 {[%emt 0:00:54]} (17. Bb5 $14) 17... Nxe5 $11 {[%emt 0:00:21]} 18. Qg3 {[%emt 0:00:25] Hoping for Bb5.} Qd7 {[%emt 0:02:20] Inhibits Bb5.} 19. Be4 {[%emt 0:13:43] [#]} ({But not} 19. Bh6 $2 Nh5 20. Bxh7+ Kxh7 $19) (19. Rxe5 $11 {and White is okay.} Rxe5 20. Qxe5 Qxd3 21. Be3) 19... Rad8 $1 $19 {[%emt 0:10:19]} ({Inferior is} 19... Nxe4 20. Rxe4 Qxd2 21. Rxe5 $17) 20. Rad1 {[%emt 0:05:00] [#]} ({Wrong is} 20. Bh6 $2 Neg4 21. Bxh7+ Kxh7 $19) 20... Nxe4 {[%emt 0:06:06]} (20... Ng6 $1 $19 {and Black stays clearly on top.} 21. f3 Nxe4 22. fxe4 Qa4) 21. Rxe4 $17 {[%emt 0:00:19] [#]} Nc4 {[%emt 0:01:29]} 22. Rd4 {[%emt 0:00:39]} Qa4 $40 {[%emt 0:00:04][%mdl 128] White needs to defend precisely.} 23. Qg4 {[%emt 0:04:48][%mdl 8192]} (23. Rf1 $15 Rxd4 24. Bh6) 23... Rxd4 $19 {[%emt 0:00:17] Black is clearly winning.} 24. cxd4 {[%emt 0:00:35]} Nxd2 {[%emt 0:00:06]} 25. h3 {[%emt 0:00:18]} f5 {[%emt 0:00:43] Weighted Error Value: White=1.49/Black=0.17 (very precise)} 0-1

[Event "34th MPL National U14-ch 2022"]
[Site "Ahmedabad"]
[Date "2022.05.09"]
[Round "1.7"]
[White "Sahib Singh"]
[Black "Ashwinth Michael"]
[Result "1-0"]
[ECO "B23"]
[WhiteElo "1991"]
[BlackElo "1285"]
[Annotator "TA"]
[PlyCount "107"]
[EventDate "2022.05.09"]
[EventType "swiss"]
[EventCountry "IND"]
[SourceTitle "playchess.com"]
[Source "ChessBase"]
[SourceQuality "1"]
[TimeControl "5400+30"]

{[%evp 9,107,10,16,-5,27,0,10,12,43,25,31,24,31,32,37,33,40,18,30,36,39,31,37,31,44,31,75,75,174,120,136,133,137,129,127,76,176,49,60,56,79,62,128,115,90,77,60,43,233,225,316,294,264,261,558,550,469,494,782,415,413,350,343,343,343,319,342,327,410,359,417,330,451,440,532,479,534,386,472,454,606,508,520,494,971,943,891,564,690,682,649,649,834,822,827,812,804,404,404,382]} 1. e4 {[%emt 0:00:03]} c5 {[%emt 0:00:08]} 2. Nc3 {[%emt 0:00:07]} d6 {[%emt 0:00:09]} 3. f4 {[%emt 0:00:07]} Nc6 {[%emt 0:00:14]} 4. Nf3 {[%emt 0:00:07]} e6 {[%emt 0:00:46]} 5. g3 {[%emt 0:00:08]} d5 {[%emt 0:01:51]} 6. d3 {[%emt 0:01:42] B23: Closed Sicilian: Lines without g3.} Nf6 {[%emt 0:02:17]} 7. e5 {[%emt 0:01:12]} Nd7 {[%emt 0:02:37]} 8. Bg2 {[%emt 0:10:05] [#] The position is equal.} f5 $146 {[%emt 0:03:13]} ({Predecessor:} 8... Be7 9. O-O O-O 10. a3 b6 11. Qe2 Ba6 12. f5 Nd4 13. Nxd4 cxd4 14. Nd1 Qc7 {1-0 (48) Siebarth,R (2421)-Grimberg,B (2386) Playchess.com INT 2011}) 9. O-O {[%emt 0:03:27]} Be7 {[%emt 0:05:08]} 10. Ne2 {[%emt 0:05:01]} Nb6 {[%emt 0:04:58]} 11. c3 {[%emt 0:02:47]} O-O {[%emt 0:07:33]} 12. Be3 {[%emt 0:10:40]} Bd7 {[%emt 0:08:30]} 13. h3 {[%emt 0:04:11]} Kh8 {[%emt 0:03:20]} 14. b3 {[%emt 0:07:50]} Rb8 {[%emt 0:09:24]} 15. Kh2 {[%emt 0:08:29]} Be8 {[%emt 0:06:49]} 16. d4 {[%emt 0:03:00]} Nd7 {[%emt 0:06:29]} 17. g4 {[%emt 0:06:44]} g6 {[%emt 0:01:44]} 18. Ng5 {[%emt 0:02:50]} Bf7 {[%emt 0:01:18]} (18... Bxg5 $16 19. fxg5 Bf7) 19. Nxf7+ {[%emt 0:00:32]} (19. gxf5 $18 gxf5 20. Nxf7+ Rxf7 21. c4) 19... Rxf7 $16 {[%emt 0:00:35]} 20. c4 {[%emt 0:00:09]} dxc4 {[%emt 0:08:01]} 21. d5 {[%emt 0:00:08]} (21. bxc4 $6 Nxd4 22. g5 (22. Nxd4 cxd4 23. Bxd4 Bc5 $15) 22... Nc6 $11) 21... exd5 {[%emt 0:03:51]} 22. e6 {[%emt 0:00:31]} ({Better is} 22. Bxd5 Rf8 23. gxf5 (23. bxc4 fxg4 24. hxg4 g5 $16) (23. Bxc4 Nb6 $14)) 22... Rf6 {[%emt 0:00:13]} 23. Bxd5 {[%emt 0:02:53]} ({White must play} 23. exd7 $18 Re6 24. Bf2 (24. Qxd5 Rxe3 25. Bf3 Rd3 $17)) 23... Nb6 {[%emt 0:01:17] Inhibits Qxd5.} 24. bxc4 {[%emt 0:00:08]} Nb4 {[%emt 0:05:39][%cal Rb4d5]} 25. Nc3 $36 {[%emt 0:00:46][%cal Be2c3,Bc3d5,Bd5f6][%mdl 2080] White has the initiative.} a6 {[%emt 0:03:24]} ({Black should play} 25... N4xd5 $14 26. cxd5 Nc4) 26. g5 {[%emt 0:00:24]} Rf8 {[%emt 0:02:22]} 27. a3 {[%emt 0:07:07] White is more active.} N4xd5 {[%emt 0:01:27]} 28. Nxd5 {[%emt 0:03:19]} Nxc4 $2 {[%emt 0:01:37] A mistake that costs the game.} (28... Nxd5 $14 29. cxd5 Qd6) 29. Bd4+ $1 $18 {[%emt 0:01:31]} cxd4 {[%emt 0:10:06]} (29... Kg8 $142 30. Bc3 Qd6) 30. Qxd4+ {[%emt 0:00:07]} Kg8 {[%emt 0:00:00]} 31. Qxc4 {[%emt 0:00:07]} Re8 $2 {[%emt 0:00:00]} (31... b5 {keeps fighting.} 32. Qb3 Rb7) 32. Nf6+ {[%emt 0:00:16]} Kh8 {[%emt 0:00:00] [#] Hoping for ...Rc8.} 33. Rad1 {[%emt 0:01:18]} Qb6 {[%emt 0:00:23]} (33... Bxf6 $142 34. Rxd8 Bxd8) 34. Nxe8 {[%emt 0:01:00]} Rxe8 {[%emt 0:00:33]} 35. Qd4+ {[%emt 0:15:07]} Qxd4 {[%emt 0:00:10]} 36. Rxd4 {[%emt 0:00:03]} Bxa3 {[%emt 0:00:10][%mdl 4096] Endgame KRR-KRB} 37. Rd3 {[%emt 0:01:22]} Bc5 {[%emt 0:00:16]} 38. Re1 {[%emt 0:01:24]} b6 {[%emt 0:00:14]} 39. Rd7 {[%emt 0:00:25]} a5 {[%emt 0:00:10]} 40. Ra7 {[%emt 0:01:08]} b5 {[%emt 0:00:55]} 41. Ra6 {[%emt 0:00:16]} Bd4 {[%emt 0:01:14]} 42. Rb1 {[%emt 0:01:18]} b4 {[%emt 0:01:38]} 43. Rxa5 {[%emt 0:00:16] [#] Black must now prevent Rd1.} Kg8 {[%emt 0:00:06]} 44. Ra6 {[%emt 0:01:17]} Bc3 {[%emt 0:00:07]} 45. Rd1 {[%emt 0:00:08]} b3 {[%emt 0:00:34]} 46. Ra3 {[%emt 0:00:59][%cal Ba6a3,Ba3b3,Bb3b8][%mdl 32]} Rxe6 {[%emt 0:01:00]} (46... Bg7 $142 47. Rxb3 Rxe6) 47. Rd8+ {[%emt 0:00:08]} Kf7 {[%emt 0:00:13]} 48. Rxb3 {[%emt 0:00:42]} Re2+ {[%emt 0:00:35]} 49. Kg3 {[%emt 0:00:07]} Be1+ {[%emt 0:00:29]} 50. Kf3 {[%emt 0:00:04]} Re7 {[%emt 0:00:10]} 51. Rh8 {[%emt 0:00:32]} Kg7 {[%emt 0:00:31]} 52. Rbb8 {[%emt 0:00:06] Rbf8 would kill now.} Bb4 {[%emt 0:00:11]} 53. Rbg8+ {[%emt 0:00:34]} Kf7 {[%emt 0:00:07]} 54. Rf8+ {[%emt 0:00:07] Weighted Error Value: White=0.33/Black=0.53} 1-0

[Event "34th MPL National U14-ch 2022"]
[Site "Ahmedabad"]
[Date "2022.05.09"]
[Round "1.8"]
[White "Nithik Reddy Bhavanam"]
[Black "Ankit Ray"]
[Result "0-1"]
[ECO "D02"]
[WhiteElo "1285"]
[BlackElo "1932"]
[Annotator "TA"]
[PlyCount "126"]
[EventDate "2022.05.09"]
[EventType "swiss"]
[EventCountry "IND"]
[SourceTitle "playchess.com"]
[Source "ChessBase"]
[SourceQuality "1"]
[TimeControl "5400+30"]

{[%evp 15,126,-13,0,-28,46,-5,-7,-15,0,-27,-28,-16,0,-30,44,3,11,-91,-94,-135,-126,-124,-111,-130,-119,-168,-111,-114,-92,-109,-49,-193,-197,-221,-216,-209,-196,-228,-218,-252,-232,-218,-170,-189,-155,-128,-106,-168,-158,-212,-220,-219,-188,-128,-124,-250,-250,-533,-524,-587,-582,-916,-798,-864,-621,-815,-786,-29988,-824,-4910,-1210,-29982,-29983,-29983,-29984,-29984,-29985,-29988,-29989,-29988,-29980,-29979,-29980,-29982,-29982,-29987,-29988,-29988,-12840,-29988,-29988,-29988,-29985,-29985,-29984,-29984,-29984,-29984,-29985,-29985,-12845,-29985,-29986,-29987,-12848,-29988,-29988,-29990,-29991,-29990,-29991,-29992,-29993]} 1. d4 {[%emt 0:00:06]} Nf6 {[%emt 0:00:26]} 2. Bf4 {[%emt 0:00:37]} d5 {[%emt 0:00:26]} 3. e3 {[%emt 0:02:48]} c5 {[%emt 0:00:25]} 4. c3 {[%emt 0:00:21]} Nc6 {[%emt 0:01:02]} 5. Nf3 {[%emt 0:00:39]} Qb6 {[%emt 0:02:50]} 6. Qb3 {[%emt 0:00:55]} c4 {[%emt 0:01:23]} 7. Qxb6 {[%emt 0:01:22]} axb6 {[%emt 0:00:15]} 8. Na3 {[%emt 0:02:29]} Ra5 {[%emt 0:02:16][%cal Oe7e5]} 9. Ne5 {[%emt 0:03:48] [#] D02: 1 d4 d5 2 Nf3 sidelines, including 2...Nf6 3 g3 and 2...Nf6 3 Bf4.} Nd7 $146 {[%emt 0:05:56]} ({Better is} 9... b5 $11) ({Predecessor:} 9... Bf5 10. f3 e6 11. Naxc4 dxc4 12. Nxc4 Ra6 13. Nd6+ Bxd6 14. Bxa6 Bxf4 15. Bxb7 Nd8 16. exf4 Nxb7 {0-1 (46) Bellon Lopez,J (2348)-Vocaturo,D (2622) Caleta 2020}) 10. Nxc6 {[%emt 0:03:00]} ({White should try} 10. Nxd7 $14 Bxd7 11. e4) 10... bxc6 $11 {[%emt 0:00:24]} 11. Nc2 {[%emt 0:02:57] The position is equal.} f6 {[%emt 0:04:32]} 12. Be2 {[%emt 0:01:46][%cal Oe3e4]} (12. e4 $5) 12... e5 {[%emt 0:03:24]} 13. Bg3 {[%emt 1:16:12][%cal Oe3e4]} Bd6 {[%emt 0:01:12]} 14. O-O {[%emt 0:00:00][%cal Oe3e4]} Ke7 {[%emt 0:01:59]} (14... b5 $11) 15. b4 {[%emt 0:00:00]} (15. e4 $5) 15... Ra7 {[%emt 0:00:46]} 16. Bg4 {[%emt 0:00:00]} (16. a4 $11 {keeps the balance.}) 16... h5 $17 {[%emt 0:00:41]} 17. Bxd7 {[%emt 0:00:00]} Bxd7 {[%emt 0:00:05]} 18. dxe5 {[%emt 0:00:00]} fxe5 {[%emt 1:11:28]} 19. f4 {[%emt 0:00:00]} e4 {[%emt 0:00:00]} 20. a3 {[%emt 0:00:00]} (20. b5 $17 {was worth a try.}) 20... Rha8 {[%emt 0:00:00]} (20... h4 $19 21. Be1 c5) 21. Rad1 {[%emt 0:00:00]} g6 {[%emt 0:00:00]} 22. Bh4+ {[%emt 0:00:00]} Kf7 {[%emt 0:00:00]} 23. Be1 {[%emt 0:00:00]} (23. b5 $1 $15) 23... Be7 $19 {[%emt 0:00:00][%cal Bd6e7,Be7f6,Bf6g7][%mdl 32]} 24. Bd2 {[%emt 0:00:00]} c5 {[%emt 0:00:00]} 25. Bc1 {[%emt 0:00:00]} Ba4 {[%emt 0:00:00]} 26. Rf2 {[%emt 0:00:00]} Ke6 {[%emt 0:00:00]} 27. Rdf1 {[%emt 0:00:00]} Bf6 {[%emt 0:00:00]} 28. Bb2 {[%emt 0:00:00]} Bg7 {[%emt 0:00:00]} 29. Ne1 {[%emt 0:00:00]} cxb4 {[%emt 0:00:00]} 30. axb4 {[%emt 0:00:00]} Rf7 {[%emt 0:00:00]} 31. h3 {[%emt 0:00:00]} (31. g3 $17) 31... h4 {[%emt 0:00:00]} 32. g4 {[%emt 0:00:00]} (32. Nc2 $17 {is a better defense.}) 32... hxg3 {[%emt 0:00:00]} 33. Rg2 {[%emt 0:00:00]} g5 {[%emt 0:00:00][%cal Bg6g5,Bg5f4,Bf4f3][%mdl 32]} 34. Rxg3 {[%emt 0:00:00]} gxf4 {[%emt 0:00:00] Black is more active.} 35. Rg6+ {[%emt 0:00:00] [#]} (35. exf4 $17 Bc6 36. Ng2) 35... Ke7 $1 {[%emt 0:00:00] Hoping for ...f3.} 36. Rxb6 $2 {[%emt 0:00:00]} (36. Ng2 {was called for.} f3 37. Nf4) 36... f3 {[%emt 0:00:00] White must now prevent ...Bd7.} 37. Ng2 {[%emt 0:03:04]} Rg8 {[%emt 0:00:00]} (37... fxg2 $2 38. Rb7+ Ke6 39. Rfxf7 $18) 38. Rf2 {[%emt 0:01:16]} Be5 {[%emt 0:00:00] ( -> ...Rfg7). This bishop pair is nice.} 39. b5 {[%emt 0:01:36]} Bd6 {[%emt 0:00:00] [#] Threatens to win with ...Rf6.} 40. Rb7+ {[%emt 0:00:38]} Ke6 {[%emt 0:00:00]} 41. Rb6 {[%emt 0:02:21]} Ke5 {[%emt 0:00:00]} (41... Rfg7 $142 42. Rxd6+ Kxd6 43. Ba3+ Kd7 44. Kh1 Rxg2 45. Rxg2 Rxg2 46. Bd6 Kxd6 47. b6 Rg8 48. Kh2 f2 49. b7 f1=Q 50. b8=B+ Rxb8 51. h4 Rb2+ 52. Kg3 Qf3#) 42. Ra6 {[%emt 0:01:38]} Bxb5 {[%emt 0:00:00]} (42... Rfg7 $142 43. Rxa4 Rxg2+ 44. Rxg2 Rxg2+ 45. Kf1 Rxb2) 43. Ra1 {[%emt 0:00:19]} Rfg7 {[%emt 0:00:00]} 44. Ba3 {[%emt 0:00:19]} Rxg2+ {[%emt 0:00:00]} 45. Rxg2 {[%emt 0:00:12]} Rxg2+ {[%emt 0:00:00]} 46. Kf1 {[%emt 0:00:15]} Bxa3 {[%emt 0:00:00]} 47. Rxa3 {[%emt 0:00:04] KRB-KR} Rh2 {[%emt 0:00:00]} 48. Ra7 {[%emt 0:00:21]} Rxh3 {[%emt 0:00:00]} 49. Kf2 {[%emt 0:00:21]} Rh2+ {[%emt 0:00:00]} 50. Kg3 {[%emt 0:00:16]} Rg2+ {[%emt 0:00:00]} 51. Kh3 {[%emt 0:00:05]} Rg8 {[%emt 0:00:00]} (51... Ke6 $142 52. Ra3 Bd7 53. Ra1 Ke5+ 54. Kh4 Rc2 55. Rh1 Rxc3 56. Kh5 Rxe3 57. Rh2 Re2 58. Rh1 Rg2 59. Kh6 e3 60. Kh7 Bf5+ 61. Kh6 f2 62. Kh5 e2 63. Kh6 e1=Q 64. Rh3 Qd2+ 65. Re3+ Qxe3+ 66. Kh5 Qh3#) 52. Rf7 {[%emt 0:00:12]} Ke6 {[%emt 0:00:00]} 53. Rf4 {[%emt 0:00:07]} Bd7 {[%emt 0:00:00]} 54. Kh2 {[%emt 0:00:20]} Ra8 {[%emt 0:00:00]} 55. Rh4 {[%emt 0:00:31]} Ra3 {[%emt 0:00:00]} 56. Kg3 {[%emt 0:00:32]} Rxc3 {[%emt 0:00:00]} 57. Rh6+ {[%emt 0:00:22]} Ke7 {[%emt 0:19:30]} (57... Ke5 $142 58. Rh7 Bf5 59. Rf7 Rxe3 60. Re7+ Be6 61. Rh7 Re2 62. Rh5+ Bf5 63. Rh2 Rxh2 64. Kxh2 c3 65. Kg1 c2 66. Kf1 c1=Q+ 67. Kf2 e3+ 68. Kxf3 Qd2 69. Kg3 Qf2#) 58. Rh7+ {[%emt 0:00:15]} Kd6 {[%emt 0:00:00]} 59. Rh4 {[%emt 0:00:52]} Rxe3 {[%emt 0:00:00]} (59... Rc2 $142 60. Rh6+ Kc5 61. Rh1 Rg2+ 62. Kh4 f2 63. Rf1 c3 64. Kh5 c2 65. Kh6 Rg1 66. Rxf2 c1=Q 67. Kh7 Rg4 68. Rf6 Qh1+ 69. Rh6 Bf5+ 70. Kh8 Qxh6#) 60. Rh7 {[%emt 0:00:25]} c3 {[%emt 0:00:00][%cal Bc4c3,Bc3c2][%mdl 32] Black mates.} 61. Rh1 {[%emt 0:00:15]} c2 {[%emt 0:00:00]} 62. Rc1 {[%emt 0:00:33]} Re2 {[%emt 0:00:00]} 63. Kf4 {[%emt 0:00:20]} f2 {[%emt 0:00:00] Weighted Error Value: White=0.99/Black=0.56} 0-1

[Event "34th MPL National U14-ch 2022"]
[Site "Ahmedabad"]
[Date "2022.05.09"]
[Round "1.9"]
[White "Bharadia Yash"]
[Black "Jagrut Badrishbhai Modi"]
[Result "1-0"]
[ECO "C64"]
[WhiteElo "1924"]
[BlackElo "1274"]
[Annotator "TA"]
[PlyCount "45"]
[EventDate "2022.05.09"]
[EventType "swiss"]
[EventCountry "IND"]
[SourceTitle "playchess.com"]
[Source "ChessBase"]
[SourceQuality "1"]
[TimeControl "5400+30"]

{[%evp 12,44,61,65,63,68,75,68,83,93,83,73,98,80,168,151,211,126,257,262,248,253,293,276,472,461,29992,29993,29995,29996,29996,29997,29998,29999,29999]} 1. e4 {[%emt 0:00:05]} e5 {[%emt 0:00:30]} 2. Nf3 {[%emt 0:00:12]} Nc6 {[%emt 0:00:55]} 3. Bb5 {[%emt 0:00:16]} Bc5 {[%emt 0:00:45]} 4. O-O {[%emt 0:01:12]} Nge7 {[%emt 0:01:20]} 5. c3 {[%emt 0:00:30]} O-O {[%emt 0:05:29]} 6. d4 {[%emt 0:00:12]} exd4 {[%emt 0:01:01]} 7. cxd4 {[%emt 0:00:05]} Bb6 {[%emt 0:02:50] C64: Ruy Lopez: Classical Defence (3...Bc5) except 4 0-0 Nf6.} 8. d5 $1 {[%emt 0:05:41]} Nb8 {[%emt 0:00:19]} 9. d6 {[%emt 0:07:24]} cxd6 {[%emt 0:06:30][%cal Od6d5] White is slightly better.} 10. Nc3 {[%emt 0:00:15] Against d5} d5 {[%emt 0:03:53]} 11. Nxd5 {[%emt 0:02:48] White is more active.} Nxd5 {[%emt 0:00:19]} 12. Qxd5 {[%emt 0:00:47]} h6 {[%emt 0:04:19] [#]} (12... d6 $16) 13. Bf4 $1 $18 {[%emt 0:02:06] [#]} Nc6 $146 {[%emt 0:01:46]} (13... Bc7 $16) ({Predecessor:} 13... Bc7 14. e5 Nc6 15. Rac1 Qe7 16. Bc4 Kh8 17. a3 Bd8 18. Rfe1 Qe6 19. Qd2 Qg6 {1-0 (33) Ermolaev,A (2350)-Baticulon,N (1319) LSS email 2008}) 14. Rac1 {[%emt 0:01:24]} ({White should play} 14. Bd6 $18) 14... Qf6 {[%emt 0:17:08]} (14... d6 $16 {was called for.}) 15. Bd6 {[%emt 0:05:03]} Re8 {[%emt 0:06:22]} 16. e5 {[%emt 0:00:35]} Qf4 {[%emt 0:00:48]} 17. Rfe1 {[%emt 0:04:17][%cal Oe5e6] [#] Threatens to win with e6!} Nd4 {[%emt 0:01:06] Prevents e6.} (17... Re6 {was necessary.} 18. Bc4 a6) 18. e6 {[%emt 0:01:50] White threatens exf7+ and mate.} Qf5 {[%emt 0:18:21]} (18... Nxf3+ $18 19. gxf3 Qg5+ 20. Qxg5 hxg5 21. exd7 Rxe1+ 22. Rxe1 Bxd7) 19. exf7+ {[%emt 0:00:54] White mates.} Qxf7 {[%emt 0:00:09]} 20. Rxe8+ {[%emt 0:00:06]} Kh7 {[%emt 0:00:07]} 21. Qxf7 {[%emt 0:00:30]} Nxb5 {[%emt 0:00:40]} 22. Qf5+ {[%emt 0:00:18]} g6 {[%emt 0:00:12]} 23. Qf7# {[%emt 0:00:06] White took control after the opening.  Weighted Error Value: White=0.06 (flawless) /Black=0.85} 1-0

[Event "34th MPL National U14-ch 2022"]
[Site "Ahmedabad"]
[Date "2022.05.09"]
[Round "1.10"]
[White "Harshvardhan Swami"]
[Black "Chidvilash Sai Surapaneni"]
[Result "0-1"]
[ECO "B12"]
[WhiteElo "1272"]
[BlackElo "1912"]
[Annotator "TA"]
[PlyCount "58"]
[EventDate "2022.05.09"]
[EventType "swiss"]
[EventCountry "IND"]
[SourceTitle "playchess.com"]
[Source "ChessBase"]
[SourceQuality "1"]
[TimeControl "5400+30"]

{[%evp 13,58,12,20,17,8,13,33,27,15,28,54,-16,0,-74,-87,-156,-132,-361,-369,-364,-360,-367,-368,-345,-353,-338,-325,-341,-339,-369,-366,-395,-372,-962,-956,-916,-910,-1048,-721,-834,-813,-817,-817,-818,-817,-867,-850]} 1. e4 {[%emt 0:00:03]} c6 {[%emt 0:00:08]} 2. d4 {[%emt 0:00:18]} d5 {[%emt 0:00:09]} 3. e5 {[%emt 0:00:40]} Bf5 {[%emt 0:00:08]} 4. Nc3 {[%emt 0:00:06]} e6 {[%emt 0:00:07]} 5. g4 {[%emt 0:00:04]} Bg6 {[%emt 0:00:04]} 6. Nge2 {[%emt 0:00:16]} h6 {[%emt 0:01:20]} 7. Nf4 {[%emt 0:00:17]} Bh7 {[%emt 0:00:08]} 8. Be3 {[%emt 0:00:04] B12: Caro-Kann: Advance Variation.} Nd7 {[%emt 0:03:21]} 9. Bd3 {[%emt 0:01:03]} Bxd3 {[%emt 0:00:13]} 10. Qxd3 {[%emt 0:00:02] White is slightly better.} Ne7 {[%emt 0:01:19][%cal Oc6c5,Bg8e7,Be7c6,Bc6e5][%mdl 32]} 11. O-O-O {[%emt 0:00:33]} c5 {[%emt 0:00:31] [#]} 12. Nb5 $146 {[%emt 0:00:53]} ({White should play} 12. dxc5 $14 Nxe5 13. Qe2 (13. Qb5+ Qd7 $11)) ({Predecessor:} 12. Rhe1 c4 13. Qd2 Nc6 14. Kb1 Bb4 15. Nh5 g6 16. Ng3 Qh4 17. g5 hxg5 18. Bxg5 Bxc3 19. bxc3 {0-1 (28) Calvello,S (1655)-Ropokis,D (1800) FICGS email 2010}) 12... Nc6 $11 {[%emt 0:03:16]} 13. Nxe6 {[%emt 0:00:54]} fxe6 $17 {[%emt 0:00:56]} 14. Qg6+ {[%emt 0:00:03]} Ke7 {[%emt 0:00:03][%cal Be8e7,Be7d7,Bd7c6][%mdl 32] Threatens to win with ...a6.} 15. Nd6 $2 {[%emt 0:02:08] [#] This move loses the game for White.} (15. c4 $17 {keeps fighting.} Qe8 16. Qxe8+ Rxe8 17. cxd5 exd5 18. Nc7) 15... Ndxe5 $1 $19 {[%emt 0:00:17]} 16. dxe5 {[%emt 0:00:01]} (16. Nf5+ Kd7) 16... Nxe5 {[%emt 0:00:01] Dancing on a razor blade.} 17. Nf5+ {[%emt 0:02:17]} Kd7 {[%emt 0:00:18]} 18. Qh5 {[%emt 0:01:01]} g6 {[%emt 0:00:39]} 19. Qh3 {[%emt 0:00:17]} gxf5 {[%emt 0:00:11]} 20. gxf5 {[%emt 0:00:01]} Qf6 {[%emt 0:01:49]} 21. fxe6+ {[%emt 0:02:40]} Kc6 {[%emt 0:05:42]} 22. Rhe1 {[%emt 0:16:32]} Bd6 {[%emt 0:03:16]} ({Don't go for} 22... Nc4 $2 23. c3 Rd8 24. Re2 $19) 23. b3 $2 {[%emt 0:10:24]} (23. Kb1 Nf3 24. Re2) 23... Nf3 {[%emt 0:00:16][%cal Rf6a1] [#] Black is clearly winning.} 24. Kb1 {[%emt 0:02:27] Prevents Qa1+.} Nxe1 {[%emt 0:00:02]} 25. Rxe1 {[%emt 0:01:15]} Rae8 {[%emt 0:00:26] And now ...Qc3 would win.} 26. Bc1 {[%emt 0:00:30]} Qxf2 {[%emt 0:00:36]} 27. Qc3 {[%emt 0:00:56]} b6 {[%emt 0:02:45]} 28. Qg7 {[%emt 0:02:19]} Be7 {[%emt 0:02:37]} 29. Qe5 {[%emt 0:01:17]} Bf6 {[%emt 0:00:20] Weighted Error Value: White=0.70/Black=0.21 (precise)} 0-1